bitfinex/quotes_SOLUSD_20250507
["timestamp","ask_amount","ask_price","bid_price","bid_amount"]
[1746595886619,2.0,146.29,146.27,6.8366719]
[1746595887419,2.0,146.29,146.26,21.28490642]
[1746595893228,2.0,146.29,146.27,14.4479396]
[1746595893552,2.0,146.29,146.28,14.4479396]
[1746595894823,2.0,146.29,146.27,14.4479396]
[1746595895919,2.0,146.29,146.27,21.28440518]
[1746595898948,2.0,146.29,146.28,14.4479396]
[1746595900160,2.0,146.29,146.27,21.28440518]
[1746595901245,2.0,146.29,146.26,14.4479396]
[1746595904151,16.4479396,146.29,146.23,15.84]
[1746595904329,16.4479396,146.29,146.25,14.4479396]
[1746595904535,2.0,146.29,146.26,14.4479396]
[1746595904757,2.0,146.29,146.27,14.4479396]
[1746595905256,2.0,146.29,146.28,14.4479396]
[1746595905756,2.0,146.29,146.27,14.4479396]
[1746595906347,2.0,146.29,146.27,21.28420728]
[1746595908254,2.0,146.29,146.26,21.28486627]
[1746595908632,2.0,146.29,146.27,14.4479396]
[1746595911260,2.0,146.29,146.27,21.28424246]
[1746595911848,2.0,146.29,146.27,16.05861034]
[1746595916760,2.0,146.29,146.26,6.83713934]
[1746595916966,2.0,146.29,146.26,16.05944682]
[1746595920046,11.22230748,146.29,146.26,6.83713934]
[1746595920875,11.22230748,146.29,146.25,15.84]
[1746595920876,9.22230748,146.28,146.25,15.84]
[1746595921558,9.22230748,146.27,146.24,6.83768773]
[1746595922071,9.22230748,146.27,146.23,16.06066857]
[1746595922452,6.83623547,146.28,146.21,57.68]
[1746595922453,9.22230748,146.26,146.22,16.06115365]
[1746595924181,9.22230748,146.27,146.23,6.83807972]
[1746595924363,9.22230748,146.27,146.23,16.0603872]
[1746595924970,139.7,146.29,146.25,9.22230748]
[1746595925180,148.92230748,146.29,146.25,9.22230748]
[1746595925472,148.92230748,146.29,146.26,9.22230748]
[1746595925676,139.7,146.29,146.26,9.22230748]
[1746595925851,154.11210871,146.29,146.25,14.41210871]
[1746595926876,154.11210871,146.29,146.25,21.24950021]
[1746595927076,14.41210871,146.28,146.25,21.24950021]
[1746595928173,14.41210871,146.28,146.24,14.41210871]
[1746595928578,154.11210871,146.29,146.25,14.41210871]
[1746595928776,139.7,146.29,146.26,14.41210871]
[1746595928953,139.7,146.29,146.27,14.41210871]
[1746595929153,139.7,146.29,146.26,14.41210871]
[1746595930363,139.7,146.29,146.26,21.24881152]
[1746595932980,2.0,146.29,146.26,21.24881152]
[1746595934590,2.0,146.29,146.26,14.41210871]
[1746595934882,14.41210871,146.27,146.24,15.84]
[1746595936181,152.11210871,146.28,146.24,15.84]
[1746595936483,152.11210871,146.28,146.24,22.67795092]
[1746595937486,14.41210871,146.27,146.24,15.84]
[1746595937693,14.41210871,146.26,146.24,15.84]
[1746595937877,14.41210871,146.26,146.22,14.41210871]
[1746595938268,14.41210871,146.26,146.22,21.25102313]
[1746595940070,137.7,146.28,146.22,6.83891442]
[1746595940071,152.11210871,146.28,146.22,6.83891442]
[1746595940387,152.11210871,146.28,146.24,14.41210871]
[1746595944373,152.11210871,146.28,146.25,6.83760683]
[1746595945885,14.41210871,146.27,146.25,6.83760683]
[1746595947896,14.41210871,146.27,146.24,6.83807439]
[1746595948103,14.41210871,146.26,146.24,6.83807439]
[1746595949713,9.22811576,146.26,146.24,6.83807439]
[1746595949889,9.22811576,146.26,146.23,6.83854202]
[1746595950704,9.22811576,146.24,146.22,6.83886208]
[1746595950996,9.22811576,146.23,146.2,22.67975053]
[1746595951211,9.22811576,146.22,146.2,22.67975053]
[1746595951515,9.22811576,146.22,146.19,6.84021929]
[1746595953599,9.22811576,146.21,146.18,6.84078219]
[1746595953795,14.42877315,146.21,146.18,6.84078219]
[1746595956321,11.42877315,146.21,146.18,6.84078219]
[1746595956930,14.42877315,146.2,146.17,6.84117311]
[1746595957525,14.42877315,146.2,146.14,8.89011545]
[1746595957702,14.42877315,146.2,146.16,14.42877315]
[1746595959205,14.42877315,146.17,146.14,6.84260193]
[1746595959725,14.42877315,146.17,146.13,21.27184528]
[1746595959931,14.42877315,146.15,146.12,6.84349606]
[1746595960143,14.42877315,146.14,146.11,22.68396604]
[1746595960438,14.42877315,146.15,146.11,37.11273919]
[1746595962334,14.42877315,146.14,146.11,22.68396604]
[1746595962630,14.42877315,146.13,146.11,6.84396604]
[1746595962842,14.42877315,146.12,146.09,6.84509548]
[1746595963719,14.42877315,146.11,146.08,6.84538477]
[1746595964437,14.42877315,146.1,146.07,22.72588264]
[1746595966450,14.42877315,146.11,146.07,37.15465579]
[1746595967045,137.7,146.12,146.09,14.42877315]
[1746595967240,137.7,146.12,146.1,14.42877315]
[1746595967822,137.7,146.12,146.09,14.42877315]
[1746595968136,14.42877315,146.11,146.07,22.72588264]
[1746595968321,14.42877315,146.11,146.07,37.15465579]
[1746595971743,152.12877315,146.12,146.08,14.42877315]
[1746595971944,152.12877315,146.12,146.09,6.84509548]
[1746595972621,14.42877315,146.1,146.09,6.84509548]
[1746595973430,137.7,146.12,146.09,6.84509548]
[1746595973431,14.42877315,146.11,146.09,6.84509548]
[1746595973949,14.42877315,146.11,146.08,6.84556407]
[1746595974329,152.12877315,146.12,146.08,21.27433722]
[1746595976350,137.7,146.12,146.1,14.42877315]
[1746595976730,137.7,146.12,146.09,14.42877315]
[1746595977851,152.12877315,146.13,146.09,14.42877315]
[1746595979340,152.12877315,146.13,146.1,6.84462696]
[1746595980357,14.42877315,146.12,146.1,6.84462696]
[1746595981751,152.12877315,146.13,146.09,14.42877315]
[1746595982045,137.7,146.13,146.1,14.42877315]
[1746595983351,14.42877315,146.12,146.08,21.27433722]
[1746595983561,14.42877315,146.12,146.08,6.84556407]
[1746595984754,137.7,146.13,146.08,6.84556407]
[1746595984755,14.42877315,146.1,146.08,6.84556407]
[1746595984959,14.42877315,146.1,146.07,22.7258546]
[1746595985160,14.42877315,146.1,146.07,6.8458546]
[1746595986259,14.42877315,146.1,146.05,30.32877315]
[1746595986260,14.42877315,146.1,146.06,6.84650143]
[1746595986458,14.42877315,146.1,146.06,21.27527458]
[1746595989059,14.42877315,146.09,146.06,6.84650143]
[1746595989361,14.42877315,146.1,146.06,21.27527458]
[1746595991158,14.42877315,146.11,146.07,14.42877315]
[1746595991460,14.42877315,146.12,146.09,14.42877315]
[1746595991759,137.7,146.13,146.1,14.42877315]
[1746595992365,152.12877315,146.13,146.1,14.42877315]
[1746595993867,152.12877315,146.13,146.11,6.84415851]
[1746595997086,152.12877315,146.13,146.08,23.9590843]
[1746595997279,14.42877315,146.12,146.08,21.27433722]
[1746595997580,14.42877315,146.11,146.08,6.84556407]
[1746596000552,14.42877315,146.1,146.08,6.84556407]
[1746596001573,14.42877315,146.11,146.08,6.84556407]
[1746596004177,14.42877315,146.1,146.07,6.84603272]
[1746596005082,14.42877315,146.09,146.06,6.84637682]
[1746596005380,137.7,146.1,146.06,6.84637682]
[1746596005381,14.42877315,146.08,146.06,6.84637682]
[1746596006188,14.42877315,146.07,146.01,8.88796433]
[1746596006481,14.42877315,146.06,146.02,14.42877315]
[1746596007675,14.42877315,146.07,146.03,14.42877315]
[1746596009176,14.42877315,146.08,146.04,14.42877315]
[1746596010659,14.42877315,146.08,146.05,6.84697021]
[1746596011683,14.42877315,146.08,146.04,21.27600629]
[1746596011884,14.42877315,146.07,146.04,6.84723314]
[1746596012890,14.42877315,146.06,146.04,6.84723314]
[1746596013794,14.42877315,146.06,146.03,6.84790796]
[1746596013992,14.42877315,146.04,145.99,14.42877315]
[1746596014188,14.42877315,146.03,145.99,14.42877315]
[1746596014396,157.24536237,146.05,146.0,14.42877315]
[1746596016008,157.24536237,146.05,146.01,6.84884596]
[1746596016185,14.42877315,146.04,146.01,6.84884596]
[1746596016701,5.11658922,146.03,146.01,6.84884596]
[1746596017695,14.42877315,146.04,146.01,6.84884596]
[1746596018215,152.12877315,146.05,146.01,6.84884596]
[1746596018589,5.10965537,146.04,146.01,6.84884596]
[1746596019518,19.53842852,146.04,146.01,6.84884596]
[1746596020118,14.42877315,146.04,146.01,6.84884596]
[1746596022313,137.7,146.05,146.01,6.84884596]
[1746596022515,152.12877315,146.05,146.01,21.27761911]
[1746596022713,163.7,146.09,146.03,14.42877315]
[1746596023004,14.42877315,146.07,146.03,14.42877315]
[1746596023208,137.7,146.08,146.03,14.42877315]
[1746596023515,19.53440926,146.07,146.03,14.42877315]
[1746596023893,19.53440926,146.07,146.04,6.84743905]
[1746596024292,14.42877315,146.07,146.04,6.84743905]
[1746596025022,152.12877315,146.08,146.04,21.2762122]
[1746596025190,137.7,146.08,146.05,14.42877315]
[1746596025909,137.7,146.08,146.06,6.84650143]
[1746596026291,137.7,146.08,146.06,21.27527458]
[1746596026611,15.96337315,146.11,146.07,14.42877315]
[1746596027301,5.10663417,146.1,146.07,14.42877315]
[1746596028000,19.53540732,146.1,146.06,21.27527458]
[1746596028296,19.53540732,146.09,146.03,31.86]
[1746596028497,19.53540732,146.09,146.05,14.42877315]
[1746596029716,14.42877315,146.08,146.04,21.2762122]
[1746596029899,14.42877315,146.07,146.03,37.19664183]
[1746596030413,137.7,146.08,146.04,14.42877315]
[1746596030414,152.12877315,146.08,146.04,14.42877315]
[1746596030807,5.10539406,146.07,146.04,14.42877315]
[1746596031315,19.53416721,146.07,146.03,37.19664183]
[1746596031612,14.42877315,146.07,146.03,37.19664183]
[1746596033417,14.42877315,146.06,146.03,15.92]
[1746596033612,14.42877315,146.04,146.01,6.84864666]
[1746596034006,144.54570095,146.08,146.03,14.42877315]
[1746596034199,14.42877315,146.07,146.03,14.42877315]
[1746596034813,14.42877315,146.07,146.03,21.27629511]
[1746596035020,5.1055056,146.06,146.03,21.27629511]
[1746596035732,5.1055056,146.06,146.04,14.42877315]
[1746596036206,14.42877315,146.07,146.04,14.42877315]
[1746596037520,14.42877315,146.07,146.03,14.42877315]
[1746596038321,5.10685481,146.06,146.03,14.42877315]
[1746596038618,14.42877315,146.05,146.01,21.27761911]
[1746596039124,19.53562796,146.06,146.02,14.42877315]
[1746596039435,14.42877315,146.07,146.03,14.42877315]
[1746596040237,14.42877315,146.07,146.04,6.84743905]
[1746596040623,14.42877315,146.06,146.03,6.84768907]
[1746596041240,5.10905825,146.05,146.03,6.84768907]
[1746596042944,14.42877315,146.06,146.03,6.84768907]
[1746596045538,5.11330264,146.05,146.03,6.84768907]
[1746596045844,5.11330264,146.05,146.03,21.27646222]
[1746596046054,5.11330264,146.05,146.04,14.42877315]
[1746596046222,137.7,146.08,146.04,14.42877315]
[1746596046420,137.7,146.08,146.05,14.42877315]
[1746596046915,152.12877315,146.09,146.05,14.42877315]
[1746596047546,5.11783446,146.08,146.06,21.27527458]
[1746596048425,5.11783446,146.07,146.06,21.27527458]
[1746596049245,5.11783446,146.07,146.06,6.84650143]
[1746596049832,5.11783446,146.07,146.04,14.42877315]
[1746596050435,14.42877315,146.06,146.03,6.84790796]
[1746596051245,14.42877315,146.07,146.03,21.27668111]
[1746596051546,5.12481326,146.06,146.03,21.27668111]
[1746596052747,5.12481326,146.05,146.03,21.27668111]
[1746596053734,5.12481326,146.04,146.03,21.27668111]
[1746596061146,14.42877315,146.07,146.03,21.27668111]
[1746596061852,137.7,146.09,146.03,21.27668111]
[1746596062056,14.42877315,146.07,146.03,21.27668111]
[1746596062560,5.12783587,146.06,146.03,21.27668111]
[1746596063556,5.12783587,146.05,146.03,21.27668111]
[1746596064558,5.12783587,146.04,146.03,21.27668111]
[1746596064936,5.12783587,146.04,146.03,20.8615811]
[1746596068557,5.12783587,146.04,146.03,6.43280795]
[1746596069737,5.12783587,146.04,146.03,20.8615811]
[1746596070846,152.12877315,146.09,146.03,20.8615811]
[1746596071062,152.12877315,146.09,146.05,14.42877315]
[1746596071252,137.7,146.09,146.06,14.42877315]
[1746596071436,152.12877315,146.1,146.06,14.42877315]
[1746596073567,152.12877315,146.1,146.07,6.84603272]
[1746596075267,152.12877315,146.1,146.06,21.27509849]
[1746596075470,14.42877315,146.09,146.06,6.84632534]
[1746596077069,14.42877315,146.08,146.05,21.27559762]
[1746596077273,14.42877315,146.07,146.05,6.84682447]
[1746596077651,14.42877315,146.08,146.05,6.84682447]
[1746596078768,137.7,146.1,146.05,6.84682447]
[1746596078991,152.12877315,146.1,146.06,14.42877315]
[1746596081184,152.12877315,146.1,146.07,6.84603272]
[1746596083355,137.7,146.1,146.07,21.27480587]
[1746596084383,152.07546574,146.1,146.07,6.84603272]
[1746596086678,152.07546574,146.1,146.06,6.84650143]
[1746596087281,14.42877315,146.09,146.06,6.84650143]
[1746596087488,14.42877315,146.07,146.04,15.88]
[1746596088287,14.42877315,146.08,146.04,30.30877315]
[1746596088781,14.42877315,146.08,146.04,37.15619372]
[1746596092580,14.42877315,146.07,146.04,22.72742057]
[1746596092781,14.42877315,146.06,146.04,22.72742057]
[1746596094785,14.42877315,146.07,146.03,6.84790796]
[1746596095397,14.42877315,146.07,146.03,21.27668111]
[1746596095712,14.42877315,146.07,146.03,6.84790796]
[1746596099001,14.42877315,146.07,146.03,21.27668111]
[1746596101093,144.49151476,146.1,146.03,21.27668111]
[1746596101302,14.42877315,146.07,146.03,21.27668111]
[1746596102209,137.64669259,146.1,146.04,14.42877315]
[1746596102375,14.42877315,146.09,146.05,14.42877315]
[1746596103395,14.42877315,146.09,146.06,6.84650143]
[1746596103603,152.07546574,146.1,146.06,21.27527458]
[1746596105096,152.07546574,146.1,146.06,6.84650143]
[1746596106199,14.42877315,146.09,146.06,6.84650143]
[1746596108400,14.42877315,146.09,146.04,6.84743905]
[1746596108707,14.42877315,146.09,146.05,14.42877315]
[1746596109493,14.42877315,146.09,146.04,21.2762122]
[1746596109896,14.42877315,146.07,146.04,6.84743905]
[1746596113115,5.13111324,146.06,146.04,6.84743905]
[1746596114507,5.13111324,146.05,146.04,6.84743905]
[1746596116532,5.13111324,146.05,146.03,31.97824227]
[1746596116701,5.13111324,146.05,146.03,25.13055305]
[1746596116902,5.13111324,146.04,146.03,9.25055305]
[1746596117322,5.13111324,146.04,146.02,16.09867493]
[1746596117825,5.13111324,146.03,146.02,16.09867493]
[1746596119725,5.13111324,146.03,146.02,21.3048591]
[1746596121414,5.13111324,146.03,146.01,37.18540572]
[1746596121619,40.45673722,146.09,146.01,30.33673722]
[1746596121620,21.3039141,146.05,146.01,30.33673722]
[1746596121830,14.45673722,146.04,146.01,15.88]
[1746596122900,14.45673722,146.03,145.99,14.45673722]
[1746596123831,152.10342981,146.04,145.99,14.45673722]
[1746596124128,152.10342981,146.04,145.99,21.3060603]
[1746596124335,5.12643227,146.03,145.99,21.3060603]
[1746596125324,5.12643227,146.02,145.99,21.3060603]
[1746596126234,5.12643227,146.01,145.99,21.3060603]
[1746596126532,5.12643227,146.01,146.0,14.45673722]
[1746596128835,5.12643227,146.01,146.0,21.30605228]
[1746596137335,5.12643227,146.01,146.0,6.84931506]
[1746596141437,14.45673722,146.03,146.0,6.84931506]
[1746596141812,9.25635407,146.03,146.0,6.84931506]
[1746596142034,9.25635407,146.02,145.97,33.00571836]
[1746596142337,9.25635407,146.02,145.97,42.26207243]
[1746596143434,9.25635407,146.02,145.98,6.85025345]
[1746596144529,9.25635407,146.02,145.98,16.10660752]
[1746596144938,9.25635407,146.01,145.98,6.85025345]
[1746596145538,5.10887973,146.0,145.98,6.85025345]
[1746596146522,9.25635407,146.01,145.98,6.85025345]
[1746596148434,9.25635407,146.01,145.97,31.98687026]
[1746596148639,9.25635407,146.01,145.97,22.73051619]
[1746596148818,146.90304666,146.0,145.97,22.73051619]
[1746596149129,142.75247883,146.0,145.97,22.73051619]
[1746596150726,5.10578624,145.99,145.98,9.25635407]
[1746596151516,137.64669259,146.0,145.98,9.25635407]
[1746596151716,137.64669259,146.0,145.99,9.25635407]
[1746596151956,146.90304666,146.03,145.99,9.25635407]
[1746596152326,9.25635407,146.02,145.98,9.25635407]
[1746596152827,5.10624725,146.01,145.99,6.84978423]
[1746596153948,5.10624725,146.01,145.99,16.1061383]
[1746596154244,146.90304666,146.03,145.99,16.1061383]
[1746596154446,146.90304666,146.03,145.99,9.25635407]
[1746596154741,137.64669259,146.03,146.0,9.25635407]
[1746596155120,5.10547464,146.02,145.99,9.25635407]
[1746596156048,5.10547464,146.02,146.0,6.84931506]
[1746596156549,14.36182871,146.01,145.98,6.85025345]
[1746596157132,14.36182871,146.01,145.97,31.98692204]
[1746596157331,9.25635407,146.0,145.97,15.88]
[1746596157835,14.36182871,145.99,145.97,15.88]
[1746596158046,14.36182871,145.99,145.95,16.1080136]
[1746596159350,9.25635407,145.99,145.95,16.1080136]
[1746596160542,5.10929053,145.98,145.95,16.1080136]
[1746596161347,9.25635407,145.99,145.95,16.1080136]
[1746596162560,16.10571972,146.0,145.96,16.10752108]
[1746596162854,9.25635407,146.0,145.96,16.10752108]
[1746596163345,5.11265654,145.99,145.96,16.10752108]
[1746596163827,14.36901061,145.99,145.95,6.85152846]
[1746596164032,14.36901061,145.99,145.95,16.10788253]
[1746596164230,5.11265654,145.99,145.96,9.25635407]
[1746596164543,5.11265654,145.98,145.95,9.25635407]
[1746596165355,5.11265654,145.98,145.95,16.10800663]
[1746596165645,5.11265654,145.97,145.95,16.10800663]
[1746596167143,9.25635407,145.99,145.95,16.10800663]
[1746596167345,6.84951454,146.0,145.95,16.10800663]
[1746596167540,146.90304666,145.99,145.95,16.10800663]
[1746596168831,5.11593594,145.98,145.95,16.10800663]
[1746596169753,5.11593594,145.97,145.95,16.10800663]
[1746596170770,146.90304666,145.99,145.95,16.10800663]
[1746596171658,5.11555481,145.98,145.95,16.10800663]
[1746596172654,5.11555481,145.97,145.95,16.10800663]
[1746596172865,5.11555481,145.97,145.95,9.25635407]
[1746596173927,153.75284089,145.99,145.95,9.25635407]
[1746596174360,153.75284089,145.99,145.95,16.107981]
[1746596175255,146.90304666,145.99,145.95,16.107981]
[1746596175466,5.11586338,145.98,145.95,16.107981]
[1746596176356,5.11586338,145.97,145.95,16.107981]
[1746596177363,146.90304666,145.99,145.95,16.107981]
[1746596177550,146.90304666,145.98,145.93,15.88]
[1746596177864,9.25635407,145.95,145.91,31.98963749]
[1746596178653,5.11718365,145.94,145.91,31.98963749]
[1746596178962,14.37353772,145.94,145.91,15.88]
[1746596179150,9.25635407,145.93,145.91,15.88]
[1746596179659,9.25635407,145.93,145.89,16.11062582]
[1746596180146,5.11718365,145.92,145.89,16.11062582]
[1746596180348,9.25635407,145.91,145.87,33.56064403]
[1746596180547,9.25635407,145.9,145.87,31.15950527]
[1746596181268,9.25635407,145.91,145.87,40.41585934]
[1746596181640,146.1245291,145.93,145.87,40.41585934]
[1746596181641,9.25635407,145.9,145.87,31.15950527]
[1746596181839,14.48788988,145.9,145.87,31.15950527]
[1746596182036,14.48788988,145.89,145.87,8.42428996]
[1746596182673,14.48788988,145.89,145.87,15.27963464]
[1746596183153,14.48788988,145.88,145.87,8.42428996]
[1746596183346,5.10276963,145.88,145.87,8.42428996]
[1746596183546,5.10276963,145.88,145.87,15.27970916]
[1746596183761,5.10276963,145.88,145.87,8.42428996]
[1746596184052,19.59065951,145.88,145.87,8.42428996]
[1746596184280,5.10276963,145.88,145.87,8.42428996]
[1746596184460,14.48788988,145.89,145.87,15.27970916]
[1746596184954,144.5002395,145.91,145.87,8.42428996]
[1746596185164,14.48788988,145.89,145.87,8.42428996]
[1746596185553,14.48788988,145.88,145.87,8.42428996]
[1746596197580,137.64669259,145.9,145.87,8.42428996]
[1746596197872,14.48788988,145.89,145.87,8.42428996]
[1746596198077,14.48788988,145.88,145.87,8.42428996]
[1746596200280,137.64669259,145.9,145.87,15.27960447]
[1746596200580,152.13458247,145.9,145.87,15.27960447]
[1746596201280,137.64669259,145.9,145.87,29.76749435]
[1746596201580,137.64669259,145.9,145.89,14.48788988]
[1746596201779,137.64669259,145.9,145.88,9.26944052]
[1746596202082,9.26944052,145.92,145.89,6.8544794]
[1746596202456,9.26944052,145.91,145.89,6.8544794]
[1746596202854,9.26944052,145.91,145.88,6.85478337]
[1746596203683,9.26944052,145.9,145.87,15.27949634]
[1746596204694,6.85310979,145.92,145.87,15.27949634]
[1746596204889,9.26944052,145.9,145.87,15.27949634]
[1746596205688,172.12455249,145.93,145.87,15.27949634]
[1746596205863,165.27179259,145.93,145.88,9.26944052]
[1746596206064,9.26944052,145.92,145.89,6.8544794]
[1746596207193,9.26944052,145.91,145.89,6.8544794]
[1746596207677,14.48617981,145.91,145.89,6.8544794]
[1746596208088,14.48617981,145.91,145.88,6.85494927]
[1746596208391,14.48617981,145.91,145.87,15.27953239]
[1746596209187,14.48617981,145.9,145.87,15.27953239]
[1746596212191,172.1245922,145.93,145.87,15.27953239]
[1746596212192,14.48617981,145.91,145.87,15.27953239]
[1746596215092,14.48617981,145.9,145.87,15.27953239]
[1746596216797,14.48617981,145.9,145.87,8.42428996]
[1746596216976,14.48617981,145.89,145.87,8.42428996]
[1746596217296,152.1328724,145.88,145.87,8.42428996]
[1746596218070,158.98782167,145.88,145.87,8.42428996]
[1746596218281,152.1328724,145.88,145.87,8.42428996]
[1746596218891,157.23381947,145.88,145.87,8.42428996]
[1746596220507,142.74763966,145.88,145.87,15.27970916]
[1746596221196,137.64669259,145.88,145.87,15.27970916]
[1746596223596,142.76691296,145.88,145.87,15.27970916]
[1746596224901,142.76691296,145.88,145.87,8.42428996]
[1746596225201,157.25309277,145.88,145.87,8.42428996]
[1746596226888,142.76691296,145.88,145.87,8.42428996]
[1746596227096,142.76691296,145.88,145.87,15.27970916]
[1746596230814,142.76691296,145.88,145.87,8.42428996]
[1746596230999,152.04086867,145.88,145.87,8.42428996]
[1746596231801,157.26090095,145.88,145.87,8.42428996]
[1746596235405,142.76691296,145.88,145.87,8.42428996]
[1746596235706,142.76691296,145.88,145.87,15.27970916]
[1746596236610,5.12022037,145.88,145.87,15.27970916]
[1746596238320,5.12022037,145.88,145.87,29.77369715]
[1746596239207,5.12022037,145.88,145.87,15.27970916]
[1746596239511,5.12022037,145.88,145.87,29.77369715]
[1746596240915,5.12022037,145.88,145.87,15.27970916]
[1746596242509,5.12022037,145.88,145.87,8.42428996]
[1746596247401,5.12022037,145.88,145.87,15.27970916]
[1746596247911,5.12022037,145.88,145.87,8.42428996]
[1746596248087,5.12022037,145.88,145.87,15.27970916]
[1746596248922,5.12022037,145.88,145.87,29.77369715]
[1746596250808,5.12022037,145.88,145.87,61.57369715]
[1746596251201,137.64669259,145.93,145.87,78.71224517]
[1746596251403,137.64669259,145.93,145.9,14.49398799]
[1746596252312,137.64669259,145.93,145.91,6.85353985]
[1746596252515,5.12004054,145.92,145.91,21.34752784]
[1746596256040,5.12004054,145.92,145.91,6.85353985]
[1746596256332,5.12004054,145.92,145.91,21.34752784]
[1746596260041,5.12004054,145.92,145.91,6.85353985]
[1746596260212,5.12004054,145.92,145.91,21.34752784]
[1746596265754,5.12004054,145.92,145.91,16.12086797]
[1746596265933,5.12004054,145.92,145.88,6.85494927]
[1746596266133,5.12004054,145.92,145.89,9.26732812]
[1746596266843,9.26732812,145.93,145.89,9.26732812]
[1746596267148,6.85235517,145.94,145.89,9.26732812]
[1746596267324,9.26732812,145.93,145.89,9.26732812]
[1746596268246,9.26732812,145.92,145.88,16.12227739]
[1746596269761,14.48470213,145.92,145.88,21.3396514]
[1746596271143,5.10764727,145.91,145.88,21.3396514]
[1746596272362,14.48470213,145.93,145.88,21.3396514]
[1746596273351,14.48470213,145.91,145.88,6.85494927]
[1746596274354,5.1075635,145.9,145.88,6.85494927]
[1746596275365,14.48470213,145.91,145.88,6.85494927]
[1746596277273,1.5755,145.92,145.88,21.3396514]
[1746596277468,16.06020213,145.92,145.88,21.3396514]
[1746596278260,5.10924121,145.91,145.88,21.3396514]
[1746596279584,5.10924121,145.9,145.88,21.3396514]
[1746596280249,16.06020213,145.92,145.88,21.3396514]
[1746596280562,14.48470213,145.91,145.87,38.80899209]
[1746596280768,14.48470213,145.89,145.87,8.42428996]
[1746596280968,14.48470213,145.88,145.87,8.42428996]
[1746596281968,19.59365704,145.88,145.87,8.42428996]
[1746596282357,26.44860631,145.88,145.87,8.42428996]
[1746596284165,59.5829573,145.88,145.87,8.42428996]
[1746596284367,67.7309573,145.88,145.87,8.42428996]
[1746596285871,46.3913059,145.88,145.87,8.42428996]
[1746596286065,21.10695704,145.88,145.87,8.42428996]
[1746596286275,19.59365704,145.88,145.87,8.42428996]
[1746596286448,5.10895491,145.88,145.87,8.42428996]
[1746596287266,19.59365704,145.88,145.87,8.42428996]
[1746596291576,5.10895491,145.88,145.87,8.42428996]
[1746596295083,5.10895491,145.88,145.87,15.27970916]
[1746596295467,5.10895491,145.88,145.87,29.76441129]
[1746596295970,5.10895491,145.88,145.87,15.27970916]
[1746596296173,178.13139472,145.9,145.87,15.27970916]
[1746596296572,163.64669259,145.9,145.87,15.27970916]
[1746596296768,178.13139472,145.9,145.87,15.27970916]
[1746596297067,5.09342261,145.89,145.87,15.27970916]
[1746596297579,163.64669259,145.9,145.87,15.27970916]
[1746596297778,178.13139472,145.9,145.87,15.27970916]
[1746596297980,137.64669259,145.9,145.87,29.76441129]
[1746596298279,14.48470213,145.91,145.87,29.76441129]
[1746596298582,27.5593,145.92,145.87,29.76441129]
[1746596298880,14.48470213,145.91,145.87,29.76441129]
[1746596299685,26.0,145.93,145.88,14.48470213]
[1746596299863,14.48470213,145.92,145.88,14.48470213]
[1746596300068,14.48470213,145.91,145.88,14.48470213]
[1746596301083,14.48470213,145.92,145.88,21.33933233]
[1746596302281,5.0975794,145.91,145.88,6.8546302]
[1746596302466,5.0975794,145.91,145.88,21.33933233]
[1746596303265,15.98550213,145.91,145.88,6.8546302]
[1746596303465,14.48470213,145.89,145.87,8.42428996]
[1746596303687,14.48470213,145.88,145.87,8.42428996]
[1746596304365,19.58283697,145.88,145.87,8.42428996]
[1746596308498,5.09813484,145.88,145.87,8.42428996]
[1746596312086,26.43778624,145.88,145.87,8.42428996]
[1746596314294,45.0874351,145.88,145.87,8.42428996]
[1746596314678,59.57213723,145.88,145.87,8.42428996]
[1746596316295,45.0874351,145.88,145.87,8.42428996]
[1746596321395,59.57213723,145.88,145.87,8.42428996]
[1746596325297,38.23248583,145.88,145.87,8.42428996]
[1746596326907,45.0874351,145.88,145.87,8.42428996]
[1746596329705,39.88124743,145.88,145.87,8.42428996]
[1746596333308,30.60273297,145.88,145.87,8.42428996]
[1746596333508,39.88124743,145.88,145.87,8.42428996]
[1746596342020,5.09813484,145.88,145.87,8.42428996]
[1746596342337,14.3766493,145.88,145.87,8.42428996]
[1746596344207,5.09813484,145.88,145.87,8.42428996]
[1746596346392,14.3766493,145.88,145.87,8.42428996]
[1746596348222,21.23159857,145.88,145.87,8.42428996]
[1746596349703,14.3766493,145.88,145.87,8.42428996]
[1746596350419,5.09813484,145.88,145.87,8.42428996]
[1746596354924,14.3766493,145.88,145.87,8.42428996]
[1746596355311,5.09813484,145.88,145.87,8.42428996]
[1746596355518,5.09813484,145.88,145.87,24.55822362]
[1746596355704,5.09813484,145.88,145.87,15.27970916]
[1746596356101,146.97851446,145.9,145.87,8.42428996]
[1746596356323,9.27851446,145.89,145.87,8.42428996]
[1746596356623,5.10499143,145.88,145.87,8.42428996]
[1746596368842,5.10499143,145.88,145.87,15.27970916]
[1746596371246,5.09769946,145.88,145.87,15.27970916]
[1746596373854,5.09769946,145.88,145.87,8.42428996]
[1746596374021,14.37621392,145.88,145.87,8.42428996]
[1746596376347,39.88081205,145.88,145.87,8.42428996]
[1746596376544,49.15932651,145.88,145.87,8.42428996]